Cogmind - Beta 16 @@@ ROGUE MODE // 2026.01.25 @ 10:35:35 Player: PE-P51_RE Result: Destroyed by ZZ-W9V(R) with Subdweller Machine Gun Performance ------------- Evolutions (0) 0 Regions Visited (3) 600 Robots Destroyed (13) 65 Value Destroyed (429) 429 Prototype IDs (0) 0 Alien Tech Used (0) 0 Bonus (0) 0 TOTAL SCORE: 1094 Bonus ------- None Cogmind --------- Core Integrity 0/250 Matter 300/300 Energy 78/100 System Corruption 0% Temperature Cool (8) Movement Treading (250) Ox1 Location -10/Subcaves Parts ------- > --- POWER (1) -------- (None) > --- PROPULSION (2) --- Light Treads Spiked Treads > --- UTILITY (2) ------ Small Storage Unit High-capacity Storage Unit > --- WEAPON (2) ------- Beam Cannon Subdweller Beam Cannon > --- INVENTORY (20) --- Scrap Shield Subdweller Machine Gun Makeshift Axe SUBCON Basin (Full) Peak State ------------ > --- POWER ------------ Light Ion Engine > --- PROPULSION ------- Light Treads Spiked Treads > --- UTILITY ---------- Small Storage Unit High-capacity Storage Unit > --- WEAPON ----------- Subdweller Laser Subdweller Machine Gun > --- INVENTORY -------- Light Treads Beam Cannon Subdweller Machine Gun Rocket Launcher Makeshift Axe SUBCON Basin [Rating: 29] Favorites ----------- Power Ion Engine Engine Ion Engine Propulsion Aluminum Leg Treads Light Treads Leg Aluminum Leg Utility Small Storage Unit Storage Small Storage Unit Weapon Subdweller Machine Gun Energy Gun Subdweller Laser Energy Cannon Beam Cannon Ballistic Gun Subdweller Machine Gun Build | -11 -10 -10 -10 ------- Run | Yrd Mat Min Sub Slots Evolved . | . . . . Power . | . . . . Propulsion . | . . . . Utility . | . . . . Weapon . | . . . . Parts Attached 12 | . 2 . 10 Power 1 | . . . 1 Engine 1 | . . . 1 Core . | . . . . Reactor . | . . . . Propulsion 4 | . . . 4 Treads 4 | . . . 4 Leg . | . . . . Wheel . | . . . . Hover . | . . . . Flight . | . . . . Utility 1 | . 1 . . Device . | . . . . Storage 1 | . 1 . . Processor . | . . . . Hackware . | . . . . Protection . | . . . . Artifact . | . . . . Weapon 6 | . 1 . 5 Energy Gun 1 | . . . 1 Energy Cannon 2 | . 1 . 1 Ballistic Gun 3 | . . . 3 Ballistic Cannon . | . . . . Launcher . | . . . . Special Weapon . | . . . . Impact Weapon . | . . . . Slashing Weapon . | . . . . Piercing Weapon . | . . . . Special Melee Weapon . | . . . . Unidentified Prototypes . | . . . . Parts Lost 5 | . . . 5 Power 1 | . . . 1 Propulsion 2 | . . . 2 Utility . | . . . . Weapon 2 | . . . 2 Highest Loss Streak 4 | . . . 4 To Critical Strikes . | . . . . Average Backups 7 | . 6 11 6 Power . | . 1 1 . Propulsion 1 | . 4 4 1 Utility . | . . . . Weapon 4 | . 1 5 4 Tool/Special . | . . . . Unused Backups 19 | . . 5 14 Power 2 | . . 1 1 Propulsion 6 | . . 2 4 Utility 2 | . . 1 1 Weapon 9 | . . 1 8 Tool/Special . | . . . . Average Slot Usage (%) 88 | . 90 100 86 Engine 7 | . 14 14 6 Treads 13 | . . . 16 Leg 10 | . 28 28 6 Storage 27 | . 18 28 28 Energy Gun 7 | . 7 . 8 Energy Cannon 10 | . 7 14 9 Ballistic Gun 10 | . 14 14 9 Peak Build Rating 29 | . 7 8 29 Average Rating 19 | . 6 7 22 On Entrance 6 | 6 6 7 8 Avg Prop Armor Cover (%) . | . . . . Naked Turns . | . . . . Heaviest Build 57 | 14 55 55 57 Greatest Support 40 | 20 20 20 40 Greatest Overweight (x) 17 | . 2 2 17 Average Overweight (x) 2 | . . 2 2 Largest Inventory Capacity 20 | . 20 20 20 Average Capacity 19 | . 11 20 20 Most Carried 20 | . 7 13 20 Average Carried 17 | . 6 11 18 Final Capacity 20 | 8 20 20 20 Final Carried 19 | 6 7 13 19 Class Distribution -------------------- 100% | Mutant Dominant Class ---------------- Mutant | -10/Materials Mutant | -10/Mines Mutant | -10/Subcaves Resources | -11 -10 -10 -10 ----------- Run | Yrd Mat Min Sub Matter Collected 429 | 200 . 35 194 Remotely . | . . . . Salvage Created 427 | . . 47 380 Parts 22 | . . 8 14 Haulers Intercepted . | . . . . Recyclers Shooed . | . . . . Parts Field Recycled . | . . . . Retrieved Matter . | . . . . Parts Self-Destructed 6 | . . . 6 Prevented . | . . . . Parts Restored . | . . . . Kills | -11 -10 -10 -10 ------- Run | Yrd Mat Min Sub Combat Hostiles Destroyed 13 | . . 3 10 Guns 5 | . . 1 4 Cannons 8 | . . 2 6 Classes Destroyed 4 | . . 1 3 Swarmer 3 | . . 3 . Grunt 1 | . . . 1 Sentry 1 | . . . 1 Subdweller 8 | . . . 8 Best Kill Streak 3 | . . 3 2 Combat Bots Only 3 | . . 3 2 Max Kills in Single Turn 1 | . . 1 1 Gunslinging . | . . . . Exploded . | . . . . Melee . | . . . . Uniques/NPCs Destroyed . | . . . . Combat | -11 -10 -10 -10 -------- Run | Yrd Mat Min Sub Hostile Shots Fired 95 | . . 16 79 Missed 21 | . . 2 19 Hits 74 | . . 14 60 Projectile 74 | . . 14 60 Damage Taken 1408 | . . 121 1287 Core 256 | . . 16 240 Absorbed by Shields . | . . . . Core Remaining (%) 100 | 100 . . . Volleys Fired 72 | . . 5 67 Largest 2 | . . 2 2 Hottest 140 | . . 80 140 Shots Fired 123 | . . 10 113 Gun 71 | . . 5 66 Cannon 52 | . . 5 47 Launcher . | . . . . Special . | . . . . Kinetic 59 | . . 5 54 Thermal 64 | . . 5 59 Explosive . | . . . . Electromagnetic . | . . . . Robot Hit Streak 18 | . . 2 18 Robot Miss Streak 4 | . . 4 2 Penetration Max . | . . . . Secondary Targets 1 | . . . 1 Max Gunslinging Chain 1 | . . . 1 Shots Hit Robots 76 | . . 3 73 Core Hits 21 | . . 3 18 Critical Kills . | . . . . Critical Parts Destroyed . | . . . . Critical Strikes . | . . . . Melee Attacks . | . . . . Impact . | . . . . Slashing . | . . . . Piercing . | . . . . Sneak Attacks . | . . . . Combat Hostiles . | . . . . Follow-up Attacks . | . . . . Damage Inflicted 1563 | . . 45 1518 Guns 783 | . . 11 772 Cannons 779 | . . 34 745 Explosions . | . . . . Melee . | . . . . Ramming 1 | . . . 1 Kinetic 708 | . . 11 697 Thermal 854 | . . 34 820 Explosive . | . . . . Electromagnetic . | . . . . Impact . | . . . . Slashing . | . . . . Piercing . | . . . . Highest Corruption . | . . . . Average Corruption . | . . . . Corruption Purged . | . . . . Corruption Blocked . | . . . . Overload Shots . | . . . . Overflow Damage 2 | . . . 2 Projectiles 2 | . . . 2 Explosions . | . . . . Melee . | . . . . Knockbacks . | . . . . Impact . | . . . . Kinetic . | . . . . Secondary . | . . . . Self-Inflicted Damage . | . . . . Shots . | . . . . Rammed 3 | . . . 3 Targets Rammed 3 | . . . 3 Kicked . | . . . . Crushed . | . . . . Highest Temperature 90 | . . 90 18 Average Temperature 23 | . . 46 11 Received Heat Transfer 123 | . . . 123 Siege Activations . | . . . . Martial Activations . | . . . . Shielding Activations . | . . . . Robots Disrupted . | . . . . Combat Hostiles . | . . . . Robots Corrupted . | . . . . Combat Hostiles . | . . . . Parts Fried . | . . . . Impact Corruptions . | . . . . Robots Melted . | . . . . Combat Hostiles . | . . . . Parts Melted 3 | . . . 3 Heat Transferred 1358 | . . 74 1284 Parts Sabotaged . | . . . . Parts Stolen . | . . . . Parts Stripped . | . . . . Power Chain Reactions . | . . . . Alert | -11 -10 -10 -10 ------- Run | Yrd Mat Min Sub Maximum Alert Level . | . . . . Low Security (%) 100 | . 100 100 . Level 1 . | . . . . Level 2 . | . . . . Level 3 . | . . . . Level 4 . | . . . . Level 5 . | . . . . High Security . | . . . . Max Security . | . . . . Peak Influence 70 | . . 70 . Initial . | . . . . Average 12 | . . 14 . Influence Increases 115 | . . 75 40 Destroy 0b10 Robot/C 100 | . . 60 40 Destroy Leader 10 | . . 10 . Successful Hack 5 | . . 5 . Influence Decreases 108 | . . 75 33 Time Decay 108 | . . 75 33 Squads Dispatched . | . . . . Investigation . | . . . . Extermination . | . . . . Reinforcement . | . . . . Assault . | . . . . Garrison . | . . . . Intercept . | . . . . Searches Triggered . | . . . . Construction Impeded . | . . . . Haulers Reinforced . | . . . . Active Scanning Responses . | . . . . Cargo Convoy Interrupts . | . . . . Stealth | -11 -10 -10 -10 --------- Run | Yrd Mat Min Sub Distress Signals . | . . . . Communications Jammed . | . . . . Distress Signals . | . . . . Times Spotted 16 | . . 3 13 Peak Tracking Total 3 | . 1 3 3 Tactical Retreats . | . . . . Traps | -11 -10 -10 -10 ------- Run | Yrd Mat Min Sub Traps Triggered . | . . . . Indirectly . | . . . . Trap Hack Attempts . | . . . . Triggered . | . . . . Disarmed . | . . . . Reprogrammed . | . . . . Reused . | . . . . Traps Extracted . | . . . . Installed . | . . . . Triggered . | . . . . Machines | -11 -10 -10 -10 ---------- Run | Yrd Mat Min Sub Machines Disabled . | . . . . Max in Single Turn . | . . . . Machines Repaired . | . . . . Machines Dismantled . | . . . . Machines Sabotaged . | . . . . Overloaded Fab Kills . | . . . . Hacking | -11 -10 -10 -10 --------- Run | Yrd Mat Min Sub Machines Accessed 3 | . . 1 2 Terminals 1 | . . 1 . Fabricators . | . . . . Repair Stations . | . . . . Recycling Units . | . . . . Scanalyzers . | . . . . Garrison Access . | . . . . Total Hacks 4 | . . 2 2 Successful 3 | . . 1 2 Failed 1 | . . 1 . Catastrophic . | . . . . Database Lockouts . | . . . . Manual . | . . . . Terminals 2 | . . 2 . Fabricators . | . . . . Repair Stations . | . . . . Recycling Units . | . . . . Scanalyzers . | . . . . Garrison Access . | . . . . Terminal Hacks 3 | . . 1 2 Open Door 1 | . . . 1 Zone Layout 1 | . . 1 . Release Object 1 | . . . 1 Fabricator Hacks . | . . . . Repair Station Hacks . | . . . . Recycling Unit Hacks . | . . . . Scanalyzer . | . . . . Garrison Access Hacks . | . . . . Unauthorized Hacks . | . . . . Terminals . | . . . . Fabricators . | . . . . Repair Stations . | . . . . Recycling Units . | . . . . Scanalyzers . | . . . . Garrison Access . | . . . . Data Cores Recovered . | . . . . Used . | . . . . Hacking Detections . | . . . . Full Trace Events . | . . . . Feedback Events . | . . . . Feedback Blocked . | . . . . Robot Schematics Acquired . | . . . . Robots Built . | . . . . Authchips . | . . . . Time . | . . . . Total Robot Build Rating . | . . . . Part Schematics Acquired . | . . . . Parts Built . | . . . . Authchips . | . . . . Time . | . . . . Total Part Build Rating . | . . . . Part Studies Acquired . | . . . . Parts Repaired . | . . . . Time . | . . . . Parts Recycled . | . . . . Recycled Matter . | . . . . Retrieved Matter . | . . . . Retrieved Components . | . . . . Parts Scanalyzed . | . . . . Part Schematics Acquired . | . . . . Parts Damaged . | . . . . Bothacking | -11 -10 -10 -10 ------------ Run | Yrd Mat Min Sub Used RIF Installer . | . . . . Robots Hacked . | . . . . Non-combat . | . . . . Combat . | . . . . Robot Hacks Applied . | . . . . Relay Couplers Released . | . . . . Fabnet Peak Effective % . | . . . . Robots Rewired . | . . . . Allies Hacked . | . . . . Hacks Repelled . | . . . . Allies | -11 -10 -10 -10 -------- Run | Yrd Mat Min Sub Total Allies . | . . . . Largest Group . | . . . . Highest-Rated Group . | . . . . Highest-Rated Ally . | . . . . Total Orders . | . . . . Ally Attacks . | . . . . Total Damage . | . . . . Kills . | . . . . Allies Corrupted . | . . . . Allies Melted . | . . . . Intel | -11 -10 -10 -10 ------- Run | Yrd Mat Min Sub Active Infowar (turns) . | . . . . Robot Analysis Total . | . . . . Derelict Logs Recovered 1 | . . . 1 Drone Launches . | . . . . Drone Recoveries . | . . . . Exploration | -11 -10 -10 -10 ------------- Run | Yrd Mat Min Sub Turns Passed 2300 | . 52 346 1902 Spaces Moved 734 | 1 35 126 572 Core 30 | . . . 30 Treads 401 | . . . 401 Legs 303 | 1 35 126 141 Wheels . | . . . . Hover . | . . . . Flight . | . . . . Fastest Speed 120 | 120 120 260 250 Average Speed 277 | 120 144 260 289 Slowest Speed 900 | 120 260 260 900 Overloaded Moves . | . . . . Propulsion Burnouts . | . . . . Robots Hopped . | . . . . Potential Cave-ins . | . . . . Cave-ins Triggered . | . . . . Exploration Rate (%) 19 | 2 6 29 39 Regions Visited 3 Branch Regions 2 Pre-discovered Areas 1 | . . . 1 Known Exits Taken . | . . . . Unknown Exits Taken 3 | 1 1 1 . Scrap Searched . | . . . . Spaces Dug . | . . . . Terrain Destroyed 2 | . . . 2 Melee . | . . . . Projectile 2 | . . . 2 AOE . | . . . . Terrain Rammed . | . . . . Walls Destroyed . | . . . . Machines Disabled . | . . . . Actions | -11 -10 -10 -10 --------- Run | Yrd Mat Min Sub Total 870 | . 37 136 697 Wait 18 | . . . 18 Move 731 | . 34 125 572 Hop . | . . . . Pick Up 14 | . 1 6 7 Fast Attach 5 | . 1 . 4 Attach 2 | . . . 2 Detach 2 | . . . 2 Swap 7 | . 1 . 6 Drop 16 | . . . 16 Fire 72 | . . 5 67 Melee . | . . . . Ram . | . . . . Kick . | . . . . Crush 3 | . . . 3 Escape Stasis . | . . . . Rewire . | . . . . Trap . | . . . . Miscellaneous . | . . . . Route ------- -11/Scrapyard -10/Materials -10/Mines (discovered 2 exits: [*Mat] / *Sub) -10/Subcaves History --------- Turn | Location | Event 1 | -11/Scrapyard | Discovered new exit (range 0) 1 | -11/Scrapyard | Entered Materials 1 | -10/Materials | Discovered new exit (range 14) 53 | -10/Materials | Entered Mines 126 | -10/Mines | Received a Rocket Launcher from a helpful Derelict 196 | -10/Mines | Discovered new exit (range 4) 305 | -10/Mines | A weapon hastily lodged in a ceiling crevice suddenly fell to the ground 307 | -10/Mines | Build established: Mutant 347 | -10/Mines | Deemed a non-threat by the Exiles lab entrance 373 | -10/Mines | Discovered new exit (range 10) 399 | -10/Mines | Entered Subcaves 400 | -10/Subcaves | Approached by a straggling Scientist 779 | -10/Subcaves | Shifting Twisted Machinery released Spk. Treads 804 | -10/Subcaves | Shifting Twisted Machinery released Sub. Monowheel 899 | -10/Subcaves | Found SUBCON Basin 1053 | -10/Subcaves | A swath of the cavern ceiling suddenly collapsed 1287 | -10/Subcaves | Core integrity fell below 50% 1333 | -10/Subcaves | Lost 4 parts (2n2w) 1806 | -10/Subcaves | Shifting Twisted Machinery released Sub. Beam Cannon 1807 | -10/Subcaves | Shifting Twisted Machinery released Mak. Hacking Suite 2199 | -10/Subcaves | Core integrity fell below 20% 2299 | -10/Subcaves | A Subdweller sparked back to life 2299 | -10/Subcaves | A Subdweller sparked back to life 2301 | -10/Subcaves | Destroyed by ZZ-W9V(R) with Subdweller Machine Gun Last Messages --------------- 02009_ Subatomizers dissect the Sub. Monowheel. 02086_ G-34 Mercenary destroyed. 02089_ Acquired 41 matter. 02095_ Subatomizers dissect the Sml. Laser. 02103_ Sml. Laser fries itself beyond repair. 02126_ Sub. Machine Gun shoots sparks and powers down. 02133_ Destroyed Heat Sink. 02135_ Y-45 Defender destroyed. 02138_ Subatomizers dissect the Lgt. Treads. 02147_ Acquired 47 matter. 02148_ Subatomizers dissect the Lgt. Treads. 02150_ Lgt. Treads fries itself beyond repair. 02222_ LK-6W7(R) destroyed. 02227_ Subatomizers dissect the Sub. Machine Gun. 02230_ Acquired 16 matter. 02238_ Subatomizers dissect the Sub. Machine Gun. 02248_ Sub. Laser melted. 02248_ UB-7BH(R) destroyed. 02299_ 37-2Q1(R) creaks and sparks as it begins to move. 02299_ ZZ-W9V(R) creaks and sparks as it begins to move. Map ----- +----------------------------------------------------+ | ?????????????????????????????????????????????????? | | ?????????????????????????????????????????????????? | | ?????????????????????????????????????????????????? | | ?????????????????????????????????????????????????? | | #????????????????????????????????????????????????? | | #????????????????????????????????????????????????? | | #????????????????????????????????????????????????? | | #####????????????????????????????????????????????? | | ?????????????????????????????????????????????? | | ??????????????????????????????????????????????? | | ???????????????????????????????????????????????? | | ????????????????????????????????????????????????? | | #????????????????????????????????????????????????? | | ###???????????#??????????????????????????????????? | | #???? #????? ?????????????????????????????????? | | #??? ????? ???????????????????????????????? | | #???# ????# ???????????????????????????????? | | #???# ???# ???????????????????????????????? | | #???? ?## #???????????????????????????????? | | ###???## ## ????????????????????????????????? | | #??#### ?????????????????????????????????? | | #?## # #?????????????????????????????????? | | ### #????###???##??????##?????????????? | | ###### #### #### #?????????????? | | # ### ## #??????????????? | | #### ### @ #???????????????? | | ## # ### ## # ###???????????????? | | ??# # ## % ### #?????????????????? | | ???# % ##? #?????????????????? | | ???# ## ### ###?? R "???????????????? | | ??## # # ####?####????# ####R R